Cogmind - Beta 10 X2 --- EXPLORER MODE // 2020.07.18 @ 22:37:23 // Experiment/BattleRoyale Player: Minty Result: Destroyed by Technomachine-16 with Enhanced Nova Cannon Performance ------------- Evolutions (0) 0 Regions Visited (0) 0 Robots Destroyed (3) 15 Value Destroyed (1500) 1500 Prototype IDs (3) 60 Alien Tech Used (0) 0 Bonus (0) 0 TOTAL SCORE: 1575 Bonus ------- None Cogmind --------- Core Integrity 0/250 Matter 293/300 Energy 375/375 System Corruption 0% Temperature Cool (310) Movement Treading (155) Location -5/Wartown Parts ------- > --- POWER (4) -------- Micro Nuclear Core Antimatter Reactor > --- PROPULSION (5) --- Medium Treads Medium Treads Advanced Heavy Treads > --- UTILITY (6) ------ Advanced Cryofiber Web Long-range Sensor Array Microactuators Medium Reactive Plating > --- WEAPON (3) ------- Cooled Pulse Rifle Beamcaster Ionic Axe > --- INVENTORY (4) ---- (None) Peak State ------------ > --- POWER ------------ Micro Nuclear Core Antimatter Reactor > --- PROPULSION ------- Medium Treads Medium Treads Advanced Heavy Treads > --- UTILITY ---------- Advanced Cryofiber Web Long-range Sensor Array Melee Analysis Suite Microactuators Medium Reactive Plating > --- WEAPON ----------- Cooled Pulse Rifle Beamcaster Ionic Axe > --- INVENTORY -------- (None) [Rating: 74] Favorites ----------- Power Micro Nuclear Core Engine Improved Deuterium Engine Power Core Micro Nuclear Core Reactor Antimatter Reactor Propulsion Medium Treads Treads Medium Treads Hover Unit Improved Gravmag System Utility Advanced Cryofiber Web Device Advanced Cryofiber Web Processor Melee Analysis Suite Protection Medium Reactive Plating Weapon Ionic Axe Energy Gun Heavy Wave Gun Ballistic Cannon Advanced Assault Cannon Slashing Weapon Ionic Axe Build | -5 ------- Run | Tow Slots Evolved . | . Power . | . Propulsion . | . Utility . | . Weapon . | . Parts Attached 10 | 10 Power 1 | 1 Engine . | . Core . | . Reactor 1 | 1 Propulsion 5 | 5 Treads 5 | 5 Leg . | . Wheel . | . Hover . | . Flight . | . Utility . | . Device . | . Storage . | . Processor . | . Hackware . | . Protection . | . Artifact . | . Weapon 4 | 4 Energy Gun 3 | 3 Energy Cannon . | . Ballistic Gun . | . Ballistic Cannon . | . Launcher . | . Special Weapon . | . Impact Weapon . | . Slashing Weapon 1 | 1 Piercing Weapon . | . Special Melee Weapon . | . Unidentified Prototypes 2 | 2 Parts Lost 4 | 4 Power . | . Propulsion 3 | 3 Utility 1 | 1 Weapon . | . Highest Loss Streak 3 | 3 Average Slot Usage (%) 65 | 65 Engine 1 | 1 Core 5 | 5 Reactor 2 | 2 Treads 6 | 6 Device 18 | 18 Processor 4 | 4 Protection 5 | 5 Energy Gun 7 | 7 Ballistic Cannon 3 | 3 Slashing Weapon 5 | 5 Naked Turns . | . Heaviest Build 64 | 64 Greatest Support 126 | 126 Greatest Overweight (x) 21 | 21 Average Overweight (x) 3 | 3 Largest Inventory Capacity 4 | 4 Average Capacity 4 | 4 Most Carried 1 | 1 Average Carried . | . Final Capacity 4 | 4 Final Carried . | . Class Distribution -------------------- 100% | Hacker-Mutant Dominant Class ---------------- Hacker-Mutant | -5/Wartown Resources | -5 ----------- Run | Tow Matter Collected 97 | 97 Remotely . | . Salvage Created 87 | 87 Parts 1 | 1 Haulers Intercepted . | . Recyclers Shooed . | . Parts Field Recycled . | . Retrieved Matter . | . Parts Self-Destructed . | . Prevented . | . Kills | -5 ------- Run | Tow Combat Hostiles Destroyed 3 | 3 Cannons 3 | 3 Classes Destroyed 1 | 1 Player 3 | 3 Best Kill Streak 1 | 1 Combat Bots Only 1 | 1 Max Kills in Single Turn 1 | 1 Gunslinging . | . Exploded . | . Melee . | . Uniques/NPCs Destroyed . | . Combat | -5 -------- Run | Tow Damage Taken 766 | 766 Core 406 | 406 Absorbed by Shields . | . Redirected to Core 5886 | 5886 Core Remaining (%) . | . Volleys Fired 25 | 25 Largest 2 | 2 Hottest 136 | 136 Shots Fired 38 | 38 Gun 19 | 19 Cannon 19 | 19 Launcher . | . Special . | . Kinetic 19 | 19 Thermal 19 | 19 Explosive . | . Electromagnetic . | . Robot Hit Streak 32 | 32 Robot Miss Streak 2 | 2 Penetration Max . | . Secondary Targets . | . Shots Hit Robots 35 | 35 Core Hits 9 | 9 Critical Hits . | . Critical Kills . | . Critical Parts Destroyed . | . Melee Attacks 3 | 3 Impact . | . Slashing 3 | 3 Piercing . | . Sneak Attacks . | . Combat Hostiles . | . Follow-up Attacks . | . Damage Inflicted 996 | 996 Guns 404 | 404 Cannons 463 | 463 Explosions . | . Melee 129 | 129 Ramming . | . Kinetic 463 | 463 Thermal 404 | 404 Explosive . | . Electromagnetic . | . Impact . | . Slashing 129 | 129 Piercing . | . Highest Corruption . | . Average Corruption . | . Corruption Purged . | . Overload Shots . | . Overflow Damage . | . Projectiles . | . Explosions . | . Melee . | . Knockbacks 3 | 3 Impact . | . Kinetic 3 | 3 Secondary . | . Self-Inflicted Damage . | . Shots . | . Rammed . | . Targets Rammed . | . Kicked . | . Crushed . | . Highest Temperature 538 | 538 Average Temperature 242 | 242 Received Heat Transfer 162 | 162 Effects 19 | 19 Interference 6 | 6 Matter Decay 1 | 1 Short Circuit 2 | 2 Damage (minor) 1 | 1 Damage (major) 8 | 8 Damage (core) 1 | 1 Siege Activations . | . Robots Corrupted . | . Combat Hostiles . | . Parts Fried . | . Impact Corruptions . | . Robots Melted . | . Combat Hostiles . | . Parts Melted 4 | 4 Heat Transferred 135 | 135 Parts Sabotaged . | . Parts Stolen . | . Parts Stripped . | . Power Chain Reactions . | . Missiles Intercepted . | . Alert | -5 ------- Run | Tow Peak Influence . | . Average Influence . | . Maximum Alert Level . | . Low Security (%) . | . Level 1 . | . Level 2 . | . Level 3 . | . Level 4 . | . Level 5 . | . High Security . | . Max Security . | . Squads Dispatched . | . Investigation . | . Extermination . | . Reinforcement . | . Assault . | . Garrison . | . Intercept . | . Construction Impeded . | . Haulers Reinforced . | . Stealth | -5 --------- Run | Tow Distress Signals . | . Communications Jammed . | . Distress Signals . | . Times Spotted 5 | 5 Peak Tracking Total 1 | 1 Tactical Retreats . | . Traps | -5 ------- Run | Tow Traps Triggered . | . Indirectly . | . Trap Hack Attempts . | . Triggered . | . Disarmed . | . Reprogrammed . | . Reused . | . Traps Extracted . | . Installed . | . Triggered . | . Machines | -5 ---------- Run | Tow Machines Disabled . | . Max in Single Turn . | . Machines Sabotaged . | . Garrisons Compromised . | . Overloaded Fab Kills . | . Fab Network Shutdowns . | . Hacking | -5 --------- Run | Tow Machines Accessed . | . Terminals . | . Fabricators . | . Repair Stations . | . Recycling Units . | . Scanalyzers . | . Garrison Access . | . Total Hacks . | . Successful . | . Failed . | . Catastrophic . | . Database Lockouts . | . Manual . | . Terminals . | . Fabricators . | . Repair Stations . | . Recycling Units . | . Scanalyzers . | . Garrison Access . | . Terminal Hacks . | . Fabricator Hacks . | . Repair Station Hacks . | . Recycling Unit Hacks . | . Scanalyzer . | . Garrison Access Hacks . | . Unauthorized Hacks . | . Terminals . | . Fabricators . | . Repair Stations . | . Recycling Units . | . Scanalyzers . | . Garrison Access . | . Data Cores Recovered . | . Used . | . Hacking Detections . | . Full Trace Events . | . Feedback Events . | . Feedback Blocked . | . Robot Schematics Acquired . | . Robots Built . | . Matter . | . Time . | . Total Robot Build Rating . | . Part Schematics Acquired . | . Parts Built . | . Matter . | . Time . | . Total Part Build Rating . | . Parts Repaired . | . Time . | . Parts Recycled . | . Recycled Matter . | . Retrieved Matter . | . Retrieved Components . | . Parts Scanalyzed . | . Part Schematics Acquired . | . Parts Damaged . | . Bothacking | -5 ------------ Run | Tow Used RIF Installer . | . Robots Hacked . | . Non-combat . | . Combat . | . Robot Hacks Applied . | . Relay Couplers Released . | . Robots Rewired . | . Allies Hacked . | . Hacks Repelled . | . Allies | -5 -------- Run | Tow Total Allies . | . Largest Group . | . Highest-Rated Group . | . Highest-Rated Ally . | . Total Orders . | . Ally Attacks . | . Total Damage . | . Kills . | . Allies Corrupted . | . Allies Melted . | . Intel | -5 ------- Run | Tow Robot Analysis Total . | . Derelict Logs Recovered . | . Drone Launches . | . Drone Recoveries . | . Exploration | -5 ------------- Run | Tow Turns Passed 430 | 430 Spaces Moved 125 | 125 Core 15 | 15 Treads 110 | 110 Legs . | . Wheels . | . Hover . | . Flight . | . Fastest Speed 155 | 155 Average Speed 271 | 271 Slowest Speed 1100 | 1100 Overloaded Moves . | . Propulsion Burnouts . | . Robots Hopped . | . Cave-ins Triggered . | . Exploration Rate (%) 6 | 6 Regions Visited 1 Branch Regions 1 Pre-discovered Areas . | . Known Exits Taken . | . Unknown Exits Taken . | . Scrap Searched . | . Spaces Dug 1 | 1 Terrain Destroyed 2 | 2 Melee . | . Projectile 2 | 2 AOE . | . Actions | -5 --------- Run | Tow Total 176 | 176 Wait 4 | 4 Move 125 | 125 Hop . | . Pick Up . | . Fast Attach 9 | 9 Attach . | . Detach . | . Swap 1 | 1 Drop 9 | 9 Fire 25 | 25 Melee 3 | 3 Ram . | . Kick . | . Crush . | . Escape Stasis . | . Rewire . | . Trap . | . Miscellaneous . | . Route ------- -5/Wartown History --------- Turn | Location | Event 183 | -5/Wartown | Lost 3 parts (3n) 335 | -5/Wartown | Build established: Hacker-Mutant 358 | -5/Wartown | Core integrity fell below 50% 370 | -5/Wartown | Core integrity fell below 20% 431 | -5/Wartown | Destroyed by Technomachine-16 with Enhanced Nova Cannon Last Messages --------------- 00158_ Overheating: Melee Analysis Suite damaged (-6). 00158_ Internal heat damage averted by Adv. Cryofiber Web. 00158_ Acquired 6 matter. 00165_ Overheating: Matter decay (-48). 00178_ Overheating: System interference. 00178_ Adv. Cryofiber Web temporarily disabled. 00178_ Lrn. Sensor Array temporarily disabled. 00178_ Hvy. Wave Gun temporarily disabled. 00238_ Acquired Antimatter Reactor. 00251_ Awareflak-23 knocked back. 00254_ Awareflak-23 destroyed. 00300_ Acquired Med. Treads. 00306_ Dropped Adv. Assault Cannon. 00306_ Acquired Prototype Energy Gun. 00306_ Identified Cld. Pulse Rifle. 00310_ Dropped Hvy. Wave Gun. 00310_ Acquired Beamcaster. 00314_ Acquired Med. Treads. 00352_ Acquired Adv. Heavy Treads. 00372_ Melee Analysis Suite destroyed. Map ----- +----------------------------------------------------+ | ?????????????????????????????????????????????????? | | ?????????????????????????????????????????????????? | | ?????????????????????????????????????????????????? | | ?????????????????????????????????????????????????? | | ?????????????????????????????????????????????????? | | ?????????????????????????????????????????????????? | | ?????????????????????????????????????????????????? | | ?????????????????????????????????????????????????? | | ?????????????????????????????????????????????????? | | ?????????????????????????????????????????????????? | | ?????????????????????????????????????????????????? | | ?????????????????? ???????????????????????????? | | ???????????????? ??????????????????????????? | | ?????????????? [ ??????????????????????????? | | ????????????? ??????????????????????????? | | ????????????? ??????????????????????????? | | ???????????? ??????????????????????????? | | ???????????? ####??????????????????????? | | ??????????? #??????????????????????? | | ??????????? ! #??????????????????????? | | ?????????? #????? ????????????????? | | ?????????? #???? ""? #????????????? | | ?????????? #???? """ #????????????? | | ????????? #???? """ #?? ???????? | | ????????? #???? #? ???????? | | ???????? @#???? ? #??????? | | ???????? ##### #### #??????? | | ???????? #??????? | | ???????? #??????? | | ???????? ! #??????? | | ? ? #??????? | | [ ! #??????? | | #??????? | | #??????? | | # ?????? | | ????? | | ######### @ # ?????? | | # #??????? | | # """# ##?????? | | # """# ????? | | # """# ????? | | # ????? | | # """ ????? | | # """ ????? | | # """# ????? | | # # ????? | | ## ###+###### ????? | | # ????? | | # ????? | | # ############### ?????? | +----------------------------------------------------+ Best States ------------- Heat Dissipation 25 Energy Generation 31 Energy Capacity 375 Matter Stores 300 Matter Capacity 300 Sight Range 16 Robot Scan Range 20 Terrain Scan Density 10 Base Temperature (-) 200 Armor Coverage 225 Resistance: KI 65 Resistance: TH 65 Resistance: EX 35 Resistance: EM 35 Resistance: I 35 Resistance: S 35 Resistance: P 35 Melee Speed Boost 20 Evasion (%) 40 Melee Accuracy 5 Recoil Reduction 4 Offensive Hacking 20 Item Schematics ----------------- None Robot Schematics ------------------ None Fabricated ------------ Nothing Alien Tech Used ----------------- None Achievements -------------- None Challenges ------------ None Game ------ Seed SystemMetafiberMicrothruster Manual? 0 Play Time 00:06:41 Cumulative 212.0 hours Start 2020.07.18 @ 22:33:54 End 2020.07.18 @ 22:37:23 Sessions 1 Manual Loads 0 Difficulty Explorer Special Mode Experiment/BattleRoyale Game No. 133 Rogue 0 Adventurer 44 Explorer 89 Win Type - Total 6 Types 5/0/1/0/0/0/0 Lore% 53 Gallery% 79 Achievement% 58 Wizard Run 0 Options --------- ASCII 0 Keyboard 0 Movement Mouse Keybinds 0 Fullscreen 1 Font 18/TerminusBold Map View 76x50 Tactical HUD 1 Map Filters NONE Filters SATURATION(100) Steam 1 RUN: f89a6314-0acd-49f8-bb1e-d00a6ccd3596